[Event "*** Titled Tuesday Blitz"]
[Site "Chess.com"]
[Date "2020.02.04"]
[Round "2"]
[White "messiboca"]
[Black "tteshan"]
[Result "0-1"]
[WhiteElo "2453"]
[BlackElo "2266"]
[TimeControl "180+2"]
[EndTime "13:22:11 PST"]
[Termination "tteshan won by resignation"]

1. c4 {[%clk 0:03:01.9]} 1... Nf6 {[%clk 0:02:58]} 2. Nc3 {[%clk 0:03:00.9]}
2... e6 {[%clk 0:02:59]} 3. d4 {[%clk 0:03:00.7]} 3... d5 {[%clk 0:02:58.3]} 4.
Nf3 {[%clk 0:03:01.2]} 4... dxc4 {[%clk 0:02:56.4]} 5. g3 {[%clk 0:02:47.1]}
5... Be7 {[%clk 0:02:57.3]} 6. Bg2 {[%clk 0:02:47.6]} 6... O-O {[%clk
0:02:56.1]} 7. O-O {[%clk 0:02:48.1]} 7... c6 {[%clk 0:02:55]} 8. Ne5 {[%clk
0:02:47.4]} 8... Nbd7 {[%clk 0:02:53.9]} 9. Nxc4 {[%clk 0:02:47.6]} 9... Nb6
{[%clk 0:02:54.9]} 10. Ne5 {[%clk 0:02:47.1]} 10... Nbd5 {[%clk 0:02:51.9]} 11.
e3 {[%clk 0:02:08.9]} 11... Nxc3 {[%clk 0:02:49.5]} 12. bxc3 {[%clk 0:02:09.3]}
12... Qc7 {[%clk 0:02:47.1]} 13. Rb1 {[%clk 0:02:08.8]} 13... Bd7 {[%clk
0:02:47.9]} 14. Qb3 {[%clk 0:02:08]} 14... b6 {[%clk 0:02:48.2]} 15. a4 {[%clk
0:02:04.9]} 15... Rac8 {[%clk 0:02:48.7]} 16. a5 {[%clk 0:02:05]} 16... Rb8
{[%clk 0:02:49.1]} 17. axb6 {[%clk 0:02:03.9]} 17... axb6 {[%clk 0:02:51]} 18.
Ba3 {[%clk 0:02:02.9]} 18... Bxa3 {[%clk 0:02:50.2]} 19. Qxa3 {[%clk 0:02:03.9]}
19... Rfc8 {[%clk 0:02:50.7]} 20. Qe7 {[%clk 0:02:02.1]} 20... Be8 {[%clk
0:02:52]} 21. Qxc7 {[%clk 0:02:02.5]} 21... Rxc7 {[%clk 0:02:53.9]} 22. Ra1
{[%clk 0:02:03.6]} 22... Rbc8 {[%clk 0:02:54.4]} 23. Rfb1 {[%clk 0:02:04.1]}
23... b5 {[%clk 0:02:53.4]} 24. c4 {[%clk 0:02:05]} 24... bxc4 {[%clk
0:02:53.1]} 25. Nxc4 {[%clk 0:02:06.2]} 25... c5 {[%clk 0:02:54.3]} 26. Nd6
{[%clk 0:01:46]} 26... Rd8 {[%clk 0:02:37.7]} 27. Nb7 {[%clk 0:01:44.5]} 27...
Rxb7 {[%clk 0:02:32.3]} 28. Rxb7 {[%clk 0:01:45.1]} 28... cxd4 {[%clk
0:02:34.2]} 29. exd4 {[%clk 0:01:46.3]} 29... Rxd4 {[%clk 0:02:35.7]} 30. Ra8
{[%clk 0:01:44.7]} 30... Rd1+ {[%clk 0:02:26.7]} 31. Bf1 {[%clk 0:01:45.8]}
31... g6 {[%clk 0:02:26.4]} 32. Rbb8 {[%clk 0:01:37.3]} 32... Kf8 {[%clk
0:02:27.2]} 33. Kg2 {[%clk 0:01:27]} 33... Ke7 {[%clk 0:02:26.3]} 34. Bb5 {[%clk
0:01:28]} 34... Bxb5 {[%clk 0:02:20.3]} 35. Rxb5 {[%clk 0:01:25.4]} 35... Rd7
{[%clk 0:02:21.5]} 36. h3 {[%clk 0:01:23.7]} 36... h5 {[%clk 0:02:16.5]} 37.
Rba5 {[%clk 0:01:24.1]} 37... Nd5 {[%clk 0:02:17.2]} 38. Kf3 {[%clk 0:01:23.3]}
38... Rb7 {[%clk 0:02:15.5]} 39. R8a7 {[%clk 0:01:21.9]} 39... Rxa7 {[%clk
0:02:15.7]} 40. Rxa7+ {[%clk 0:01:23.6]} 40... Kf6 {[%clk 0:02:17.1]} 41. Ke4
{[%clk 0:01:25]} 41... Nc3+ {[%clk 0:02:16.1]} 42. Kd4 {[%clk 0:01:25.9]} 42...
Nb5+ {[%clk 0:02:14.1]} 0-1

[Event "*** Titled Tuesday Blitz"]
[Site "Chess.com"]
[Date "2020.02.04"]
[Round "2"]
[White "kleinebeer98"]
[Black "Perecke"]
[Result "1-0"]
[WhiteElo "2683"]
[BlackElo "2277"]
[TimeControl "180+2"]
[EndTime "13:22:17 PST"]
[Termination "kleinebeer98 won by resignation"]

1. e4 {[%clk 0:03:01.9]} 1... e5 {[%clk 0:03:00.7]} 2. Nf3 {[%clk 0:03:03.2]}
2... Nc6 {[%clk 0:03:01.5]} 3. d4 {[%clk 0:03:04.7]} 3... exd4 {[%clk
0:03:02.1]} 4. c3 {[%clk 0:03:06.2]} 4... dxc3 {[%clk 0:03:02.2]} 5. Nxc3 {[%clk
0:03:08.1]} 5... d6 {[%clk 0:02:53]} 6. Bc4 {[%clk 0:03:09.4]} 6... Be7 {[%clk
0:02:51.5]} 7. O-O {[%clk 0:02:56.5]} 7... Nf6 {[%clk 0:02:47.3]} 8. Ng5 {[%clk
0:02:40]} 8... O-O {[%clk 0:02:43.1]} 9. f4 {[%clk 0:02:32.5]} 9... Bg4 {[%clk
0:02:24.4]} 10. Qe1 {[%clk 0:02:24.5]} 10... h6 {[%clk 0:02:15.2]} 11. Nf3
{[%clk 0:02:12.7]} 11... Re8 {[%clk 0:01:49.2]} 12. Qg3 {[%clk 0:02:01.9]} 12...
Bf8 {[%clk 0:01:37]} 13. Bd2 {[%clk 0:01:41.8]} 13... Qd7 {[%clk 0:01:14.3]} 14.
Rae1 {[%clk 0:01:40]} 14... Re7 {[%clk 0:00:51.2]} 15. e5 {[%clk 0:01:20.9]}
15... Bxf3 {[%clk 0:00:44.5]} 16. exf6 {[%clk 0:01:20]} 16... Rxe1 {[%clk
0:00:42.6]} 17. Rxe1 {[%clk 0:01:20.5]} 17... Bh5 {[%clk 0:00:32.8]} 18. fxg7
{[%clk 0:01:19.7]} 18... Bxg7 {[%clk 0:00:33.5]} 19. Nd5 {[%clk 0:01:21.2]}
19... Kh8 {[%clk 0:00:24.7]} 20. Bc3 {[%clk 0:01:21.5]} 20... Bxc3 {[%clk
0:00:22.5]} 21. Qxc3+ {[%clk 0:01:22]} 1-0

[Event "*** Titled Tuesday Blitz"]
[Site "Chess.com"]
[Date "2020.02.04"]
[Round "2"]
[White "kasparicy"]
[Black "Winehouse83"]
[Result "1-0"]
[WhiteElo "2265"]
[BlackElo "2471"]
[TimeControl "180+2"]
[EndTime "13:22:17 PST"]
[Termination "kasparicy won by resignation"]

1. e4 {[%clk 0:03:01.9]} 1... c6 {[%clk 0:03:00.4]} 2. d4 {[%clk 0:03:02.6]}
2... d5 {[%clk 0:03:01.7]} 3. f3 {[%clk 0:03:03.8]} 3... e6 {[%clk 0:03:00.9]}
4. Be3 {[%clk 0:03:03.3]} 4... dxe4 {[%clk 0:02:52.2]} 5. fxe4 {[%clk
0:03:04.1]} 5... Nf6 {[%clk 0:02:52.7]} 6. Nc3 {[%clk 0:03:04.1]} 6... Bb4
{[%clk 0:02:52]} 7. Bd3 {[%clk 0:03:03.8]} 7... Qa5 {[%clk 0:02:44.2]} 8. Qd2
{[%clk 0:03:00.1]} 8... Ng4 {[%clk 0:02:36.9]} 9. Nge2 {[%clk 0:02:56.4]} 9...
e5 {[%clk 0:02:33.7]} 10. a3 {[%clk 0:02:53.7]} 10... Nxe3 {[%clk 0:02:27]} 11.
Qxe3 {[%clk 0:02:54.2]} 11... O-O {[%clk 0:02:24.6]} 12. O-O {[%clk 0:02:49.7]}
12... exd4 {[%clk 0:02:24]} 13. Nxd4 {[%clk 0:02:46.1]} 13... Bxc3 {[%clk
0:02:14.5]} 14. bxc3 {[%clk 0:02:45.2]} 14... Nd7 {[%clk 0:02:12.7]} 15. Bc4
{[%clk 0:02:37.8]} 15... Ne5 {[%clk 0:02:12.1]} 16. Ba2 {[%clk 0:02:36.5]} 16...
Bd7 {[%clk 0:02:03.9]} 17. Kh1 {[%clk 0:02:37.6]} 17... Rae8 {[%clk 0:02:04]}
18. Nf5 {[%clk 0:02:38.7]} 18... Kh8 {[%clk 0:01:55.1]} 19. Nxg7 {[%clk
0:01:53.8]} 19... Ng4 {[%clk 0:01:33.8]} 20. Qd4 {[%clk 0:01:45.2]} 20... Qe5
{[%clk 0:01:24]} 21. Nxe8 {[%clk 0:01:43.2]} 21... Rxe8 {[%clk 0:01:22.7]} 22.
Rxf7 {[%clk 0:01:34.9]} 22... c5 {[%clk 0:01:19.9]} 23. Qxe5+ {[%clk 0:01:33.9]}
23... Nxe5 {[%clk 0:01:21.8]} 24. Rf4 {[%clk 0:01:30.5]} 24... Bc6 {[%clk
0:01:20.1]} 25. Bd5 {[%clk 0:01:30.5]} 25... Ng6 {[%clk 0:01:20.1]} 26. Rf7
{[%clk 0:01:27.7]} 26... Ne5 {[%clk 0:01:18.5]} 27. Bxc6 {[%clk 0:01:27.7]}
27... bxc6 {[%clk 0:01:16.6]} 28. Rxa7 {[%clk 0:01:28.4]} 28... Ng4 {[%clk
0:01:17.1]} 29. Rb1 {[%clk 0:01:24]} 29... Nf2+ {[%clk 0:01:16.1]} 30. Kg1
{[%clk 0:01:24.9]} 30... Nxe4 {[%clk 0:01:18]} 31. Rbb7 {[%clk 0:01:24.9]} 31...
Ng5 {[%clk 0:01:16.7]} 32. h4 {[%clk 0:01:21.4]} 32... Ne6 {[%clk 0:01:15.4]}
33. Rxh7+ {[%clk 0:01:21.3]} 33... Kg8 {[%clk 0:01:17.3]} 34. Rhe7 {[%clk
0:01:22.5]} 1-0

[Event "*** Titled Tuesday Blitz"]
[Site "Chess.com"]
[Date "2020.02.04"]
[Round "2"]
[White "Saitama_Hero"]
[Black "MateSchmate"]
[Result "0-1"]
[WhiteElo "2265"]
[BlackElo "2499"]
[TimeControl "180+2"]
[EndTime "13:22:23 PST"]
[Termination "MateSchmate won by resignation"]

1. Nf3 {[%clk 0:03:01.9]} 1... Nf6 {[%clk 0:03:00.2]} 2. c4 {[%clk 0:03:03.1]}
2... c5 {[%clk 0:03:00.9]} 3. g3 {[%clk 0:03:03.8]} 3... b6 {[%clk 0:03:02]} 4.
Bg2 {[%clk 0:03:05.6]} 4... Bb7 {[%clk 0:03:03.9]} 5. O-O {[%clk 0:03:06.3]}
5... e6 {[%clk 0:03:05.4]} 6. d3 {[%clk 0:03:07.4]} 6... Be7 {[%clk 0:03:06.9]}
7. e4 {[%clk 0:03:08.2]} 7... d6 {[%clk 0:03:07.1]} 8. Nc3 {[%clk 0:03:08.5]}
8... O-O {[%clk 0:03:08.3]} 9. h3 {[%clk 0:03:08.7]} 9... a6 {[%clk 0:03:09.7]}
10. Re1 {[%clk 0:02:50.7]} 10... Nbd7 {[%clk 0:03:10.8]} 11. Be3 {[%clk
0:02:45.9]} 11... Qc7 {[%clk 0:03:11.8]} 12. Rc1 {[%clk 0:02:46.1]} 12... Rad8
{[%clk 0:03:12.8]} 13. Qc2 {[%clk 0:01:51]} 13... h6 {[%clk 0:03:00.9]} 14. b3
{[%clk 0:01:51]} 14... Rfe8 {[%clk 0:03:01.5]} 15. d4 {[%clk 0:01:40.1]} 15...
cxd4 {[%clk 0:03:01.8]} 16. Nxd4 {[%clk 0:01:42]} 16... Nc5 {[%clk 0:02:59.8]}
17. Bd2 {[%clk 0:01:34.7]} 17... Bf8 {[%clk 0:03:00.3]} 18. Rcd1 {[%clk
0:01:14.5]} 18... Qb8 {[%clk 0:02:45.5]} 19. Bc1 {[%clk 0:01:13.7]} 19... Qa8
{[%clk 0:02:38.9]} 20. f3 {[%clk 0:01:12]} 20... h5 {[%clk 0:02:38.9]} 21. h4
{[%clk 0:01:10.1]} 21... g6 {[%clk 0:02:37.3]} 22. Bg5 {[%clk 0:01:08.4]} 22...
Bg7 {[%clk 0:02:37.8]} 23. Nde2 {[%clk 0:01:03]} 23... Qb8 {[%clk 0:02:31]} 24.
Nf4 {[%clk 0:00:59.9]} 24... Rc8 {[%clk 0:02:19.7]} 25. Bh3 {[%clk 0:00:59.3]}
25... Nh7 {[%clk 0:02:19.8]} 26. Qd2 {[%clk 0:00:42.8]} 26... Nxg5 {[%clk
0:02:08]} 27. hxg5 {[%clk 0:00:44.7]} 27... b5 {[%clk 0:02:08.3]} 28. cxb5
{[%clk 0:00:38.9]} 28... Nxb3 {[%clk 0:02:09.2]} 29. axb3 {[%clk 0:00:36.9]}
29... Bxc3 {[%clk 0:02:10.4]} 30. Qxd6 {[%clk 0:00:34.3]} 30... Qxd6 {[%clk
0:02:10.9]} 31. Rxd6 {[%clk 0:00:32.6]} 31... Bxe1 {[%clk 0:02:12.1]} 32. bxa6
{[%clk 0:00:33.2]} 32... Bxg3 {[%clk 0:02:09.9]} 33. axb7 {[%clk 0:00:32.5]}
33... Rc1+ {[%clk 0:02:10.7]} 34. Kg2 {[%clk 0:00:31.8]} 34... Bxf4 {[%clk
0:02:12.2]} 35. Rd7 {[%clk 0:00:32]} 35... Rc7 {[%clk 0:02:12.2]} 36. Bxe6
{[%clk 0:00:27.7]} 36... fxe6 {[%clk 0:02:10.1]} 0-1

[Event "*** Titled Tuesday Blitz"]
[Site "Chess.com"]
[Date "2020.02.04"]
[Round "2"]
[White "Justmig"]
[Black "SHIVACalypso"]
[Result "1-0"]
[WhiteElo "2657"]
[BlackElo "2222"]
[TimeControl "180+2"]
[EndTime "13:22:36 PST"]
[Termination "Justmig won by resignation"]

1. d4 {[%clk 0:03:01.9]} 1... e6 {[%clk 0:02:59.9]} 2. Nf3 {[%clk 0:03:01.9]}
2... Nf6 {[%clk 0:02:58.9]} 3. Bf4 {[%clk 0:03:02.1]} 3... d5 {[%clk 0:02:56]}
4. e3 {[%clk 0:03:03.2]} 4... c5 {[%clk 0:02:56.9]} 5. Be2 {[%clk 0:03:02.4]}
5... Nc6 {[%clk 0:02:57.4]} 6. O-O {[%clk 0:03:03.3]} 6... Bd6 {[%clk
0:02:49.5]} 7. dxc5 {[%clk 0:03:04.2]} 7... Bxc5 {[%clk 0:02:49.3]} 8. c4 {[%clk
0:03:04.6]} 8... O-O {[%clk 0:02:49.6]} 9. Nc3 {[%clk 0:03:05.4]} 9... d4 {[%clk
0:02:33.2]} 10. Na4 {[%clk 0:03:05.3]} 10... b6 {[%clk 0:02:28]} 11. b4 {[%clk
0:02:55.4]} 11... Bxb4 {[%clk 0:02:21.9]} 12. exd4 {[%clk 0:02:56.5]} 12... Bb7
{[%clk 0:02:18.9]} 13. Rb1 {[%clk 0:02:50.2]} 13... Be7 {[%clk 0:02:16.8]} 14.
h3 {[%clk 0:02:35.8]} 14... Qd7 {[%clk 0:02:04.2]} 15. Nc3 {[%clk 0:02:31.9]}
15... Rfd8 {[%clk 0:01:55.2]} 16. Be3 {[%clk 0:02:33.1]} 16... Rac8 {[%clk
0:01:49.7]} 17. Qc2 {[%clk 0:02:27.9]} 17... Na5 {[%clk 0:01:48.9]} 18. Ne5
{[%clk 0:02:28.4]} 18... Qc7 {[%clk 0:01:45.4]} 19. Nb5 {[%clk 0:02:27.7]} 19...
Qb8 {[%clk 0:01:41]} 20. Bf4 {[%clk 0:02:28.9]} 20... Be4 {[%clk 0:01:40]} 21.
Bd3 {[%clk 0:02:25.2]} 21... Bxd3 {[%clk 0:01:37.7]} 22. Qxd3 {[%clk 0:02:24.9]}
22... Nxc4 {[%clk 0:01:32.5]} 23. Ng6 {[%clk 0:02:07.8]} 23... Qb7 {[%clk
0:01:29.3]} 24. Nxe7+ {[%clk 0:02:09]} 24... Qxe7 {[%clk 0:01:31.2]} 25. Bc7
{[%clk 0:02:10.3]} 25... Rxc7 {[%clk 0:01:28.7]} 26. Nxc7 {[%clk 0:02:11.6]}
26... Qxc7 {[%clk 0:01:30.6]} 27. Rfc1 {[%clk 0:02:10.7]} 27... Rc8 {[%clk
0:01:29]} 28. Rb4 {[%clk 0:02:11.7]} 28... b5 {[%clk 0:01:29.3]} 29. Rxb5 {[%clk
0:02:13.1]} 29... Nd5 {[%clk 0:01:25.6]} 30. Rxc4 {[%clk 0:02:11.9]} 30... Qd7
{[%clk 0:01:17.8]} 31. Rxc8+ {[%clk 0:01:42.9]} 31... Qxc8 {[%clk 0:01:19.7]}
32. Qb1 {[%clk 0:01:33.5]} 32... Nb6 {[%clk 0:01:08.3]} 33. Rc5 {[%clk
0:01:34.4]} 33... Qd7 {[%clk 0:01:08]} 34. a4 {[%clk 0:01:29.9]} 34... Qxa4
{[%clk 0:01:05.1]} 35. Qxb6 {[%clk 0:01:27.5]} 1-0

[Event "*** Titled Tuesday Blitz"]
[Site "Chess.com"]
[Date "2020.02.04"]
[Round "2"]
[White "FedaMaster"]
[Black "peixe64"]
[Result "1-0"]
[WhiteElo "2600"]
[BlackElo "2346"]
[TimeControl "180+2"]
[EndTime "13:22:41 PST"]
[Termination "FedaMaster won by resignation"]

1. e4 {[%clk 0:03:01.9]} 1... c5 {[%clk 0:03:00.9]} 2. d4 {[%clk 0:03:01.7]}
2... cxd4 {[%clk 0:03:01.9]} 3. c3 {[%clk 0:03:03]} 3... dxc3 {[%clk 0:03:03.3]}
4. Nxc3 {[%clk 0:03:04.9]} 4... e6 {[%clk 0:03:04.5]} 5. Nf3 {[%clk 0:03:06.2]}
5... Nc6 {[%clk 0:03:04.4]} 6. Bc4 {[%clk 0:03:07.7]} 6... Bb4 {[%clk
0:03:05.5]} 7. Qc2 {[%clk 0:03:07.5]} 7... Nge7 {[%clk 0:03:06.2]} 8. O-O {[%clk
0:03:07.1]} 8... O-O {[%clk 0:03:04]} 9. Rd1 {[%clk 0:03:08.3]} 9... Qc7 {[%clk
0:03:03.4]} 10. Nb5 {[%clk 0:03:08.3]} 10... Qb8 {[%clk 0:03:02.2]} 11. a3
{[%clk 0:03:08.7]} 11... Ba5 {[%clk 0:02:58.5]} 12. b4 {[%clk 0:03:05.4]} 12...
Bb6 {[%clk 0:02:58.9]} 13. Nd6 {[%clk 0:03:01.7]} 13... Bc7 {[%clk 0:02:54]} 14.
Bf4 {[%clk 0:02:59.6]} 14... e5 {[%clk 0:02:48.1]} 15. Nxf7 {[%clk 0:02:50.8]}
15... Rxf7 {[%clk 0:02:34.5]} 16. Ng5 {[%clk 0:02:37.7]} 16... d5 {[%clk
0:02:28.8]} 17. exd5 {[%clk 0:02:38.8]} 17... Nd4 {[%clk 0:02:27.2]} 18. Qxh7+
{[%clk 0:02:39.1]} 18... Kf8 {[%clk 0:02:27.5]} 19. Rxd4 {[%clk 0:01:32.8]}
19... exd4 {[%clk 0:02:21.6]} 20. d6 {[%clk 0:01:33.9]} 20... Bxd6 {[%clk
0:02:01.8]} 21. Bxf7 {[%clk 0:01:21.4]} 21... Bxf4 {[%clk 0:01:39.7]} 22. Qh8+
{[%clk 0:01:16.5]} 22... Ng8 {[%clk 0:01:40.7]} 23. Re1 {[%clk 0:00:57.8]} 23...
Be3 {[%clk 0:01:21.9]} 24. Qxg8+ {[%clk 0:00:53.9]} 24... Ke7 {[%clk 0:01:22.1]}
25. Qe8+ {[%clk 0:00:54.9]} 25... Kd6 {[%clk 0:01:19.9]} 26. Ne4+ {[%clk
0:00:54.6]} 26... Kc7 {[%clk 0:01:20.7]} 27. fxe3 {[%clk 0:00:40.8]} 27... Bd7
{[%clk 0:01:20.2]} 28. Qe5+ {[%clk 0:00:37]} 1-0

[Event "*** Titled Tuesday Blitz"]
[Site "Chess.com"]
[Date "2020.02.04"]
[Round "2"]
[White "Indianlad"]
[Black "Volodar_Murzin"]
[Result "1-0"]
[WhiteElo "2932"]
[BlackElo "2611"]
[TimeControl "180+2"]
[EndTime "13:22:53 PST"]
[Termination "Indianlad won by resignation"]

1. e4 {[%clk 0:03:01.9]} 1... c6 {[%clk 0:03:01.1]} 2. d4 {[%clk 0:03:02.6]}
2... d5 {[%clk 0:03:02.4]} 3. e5 {[%clk 0:03:04.2]} 3... Bf5 {[%clk 0:03:02.2]}
4. h4 {[%clk 0:03:05.8]} 4... h5 {[%clk 0:03:02.7]} 5. Bd3 {[%clk 0:03:06.4]}
5... Bxd3 {[%clk 0:03:03.5]} 6. Qxd3 {[%clk 0:03:08.3]} 6... Qa5+ {[%clk
0:03:04.5]} 7. Nd2 {[%clk 0:03:09.6]} 7... e6 {[%clk 0:03:05.6]} 8. Nf3 {[%clk
0:03:10.2]} 8... Nh6 {[%clk 0:03:07]} 9. O-O {[%clk 0:03:11.1]} 9... Nf5 {[%clk
0:03:08.4]} 10. a4 {[%clk 0:03:12.8]} 10... Be7 {[%clk 0:03:07.3]} 11. Nb3
{[%clk 0:03:10.7]} 11... Qa6 {[%clk 0:03:05]} 12. Qd1 {[%clk 0:03:12.3]} 12...
Nd7 {[%clk 0:02:56.1]} 13. g3 {[%clk 0:03:11.9]} 13... O-O-O {[%clk 0:02:51.4]}
14. Re1 {[%clk 0:03:04.1]} 14... Kb8 {[%clk 0:02:49.3]} 15. a5 {[%clk
0:03:03.8]} 15... c5 {[%clk 0:02:47.1]} 16. dxc5 {[%clk 0:03:04.4]} 16... Nxc5
{[%clk 0:02:46.9]} 17. Nbd4 {[%clk 0:03:04.7]} 17... Ne4 {[%clk 0:02:39.4]} 18.
Nxf5 {[%clk 0:03:04.7]} 18... exf5 {[%clk 0:02:39.8]} 19. Nd4 {[%clk 0:02:57.1]}
19... g6 {[%clk 0:02:32.4]} 20. Kg2 {[%clk 0:02:58.2]} 20... Ka8 {[%clk
0:02:27]} 21. c3 {[%clk 0:02:59.4]} 21... Rhe8 {[%clk 0:02:26.4]} 22. f3 {[%clk
0:02:50.4]} 22... Nc5 {[%clk 0:02:26.4]} 23. b4 {[%clk 0:02:52]} 23... Qc4
{[%clk 0:02:04.5]} 24. bxc5 {[%clk 0:02:51.4]} 24... Qxc3 {[%clk 0:02:05.6]} 25.
Be3 {[%clk 0:02:47.2]} 25... Rc8 {[%clk 0:01:55.4]} 26. a6 {[%clk 0:02:47.6]}
26... b6 {[%clk 0:01:47.3]} 27. cxb6 {[%clk 0:02:48.7]} 27... axb6 {[%clk
0:01:46.1]} 28. Ra2 {[%clk 0:02:43.5]} 28... Bc5 {[%clk 0:00:56.6]} 29. Rc2
{[%clk 0:02:41.1]} 29... Qb4 {[%clk 0:00:53.8]} 30. f4 {[%clk 0:02:27.7]} 30...
Bxd4 {[%clk 0:00:35.9]} 31. Rxc8+ {[%clk 0:02:27.2]} 31... Rxc8 {[%clk
0:00:37.8]} 32. Qxd4 {[%clk 0:02:28.1]} 32... Rc2+ {[%clk 0:00:29.9]} 33. Kf3
{[%clk 0:02:20.2]} 33... Qe7 {[%clk 0:00:05.2]} 34. Qxd5+ {[%clk 0:02:20.3]}
34... Ka7 {[%clk 0:00:06.3]} 35. Bxb6+ {[%clk 0:02:18.4]} 35... Kxb6 {[%clk
0:00:03.7]} 36. Rb1+ {[%clk 0:02:19.7]} 36... Kxa6 {[%clk 0:00:02.7]} 37. Qb5+
{[%clk 0:02:19.7]} 1-0

[Event "*** Titled Tuesday Blitz"]
[Site "Chess.com"]
[Date "2020.02.04"]
[Round "2"]
[White "Miguelito"]
[Black "Kira170"]
[Result "0-1"]
[WhiteElo "2688"]
[BlackElo "2523"]
[TimeControl "180+2"]
[EndTime "13:22:56 PST"]
[Termination "Kira170 won by resignation"]

1. e4 {[%clk 0:03:01.9]} 1... e6 {[%clk 0:03:00.8]} 2. d4 {[%clk 0:03:02.2]}
2... d5 {[%clk 0:03:01.8]} 3. Nc3 {[%clk 0:03:04.1]} 3... Nf6 {[%clk 0:03:02.2]}
4. e5 {[%clk 0:03:05.7]} 4... Nfd7 {[%clk 0:03:03.3]} 5. f4 {[%clk 0:03:07.6]}
5... c5 {[%clk 0:03:04.4]} 6. Nf3 {[%clk 0:03:09.3]} 6... Nc6 {[%clk 0:03:05.5]}
7. Be3 {[%clk 0:03:10.8]} 7... Qb6 {[%clk 0:03:06.7]} 8. Na4 {[%clk 0:03:11.9]}
8... Qa5+ {[%clk 0:03:08]} 9. c3 {[%clk 0:03:13.5]} 9... b6 {[%clk 0:03:09.5]}
10. Bd2 {[%clk 0:03:14.2]} 10... c4 {[%clk 0:03:10.8]} 11. b4 {[%clk 0:03:14.4]}
11... Nxb4 {[%clk 0:03:12.3]} 12. cxb4 {[%clk 0:03:15.5]} 12... Bxb4 {[%clk
0:03:14.2]} 13. Qc2 {[%clk 0:03:14.7]} 13... Bxd2+ {[%clk 0:03:14.7]} 14. Nxd2
{[%clk 0:03:16.6]} 14... b5 {[%clk 0:03:15.9]} 15. Nc3 {[%clk 0:03:12]} 15... b4
{[%clk 0:03:17]} 16. Nce4 {[%clk 0:02:58.8]} 16... dxe4 {[%clk 0:03:10.5]} 17.
Nxc4 {[%clk 0:02:59.2]} 17... b3+ {[%clk 0:03:09.3]} 18. Nxa5 {[%clk 0:02:59.6]}
18... bxc2 {[%clk 0:03:08.9]} 19. Rc1 {[%clk 0:02:55.4]} 19... O-O {[%clk
0:02:57]} 20. Rxc2 {[%clk 0:02:34.8]} 20... Nb6 {[%clk 0:02:56.7]} 21. Bb5
{[%clk 0:02:26]} 21... Nd5 {[%clk 0:02:36.1]} 22. Ke2 {[%clk 0:01:49.5]} 22...
Rb8 {[%clk 0:02:02.6]} 23. a4 {[%clk 0:01:42.8]} 23... a6 {[%clk 0:01:50.1]} 24.
Bc4 {[%clk 0:01:42.7]} 24... Bd7 {[%clk 0:01:20.8]} 25. Ra1 {[%clk 0:01:32.2]}
25... Rb4 {[%clk 0:01:21.4]} 26. g3 {[%clk 0:01:02.2]} 26... Bxa4 {[%clk
0:01:17]} 27. Rd2 {[%clk 0:00:51]} 27... Rxc4 {[%clk 0:01:10.1]} 28. Nxc4 {[%clk
0:00:52.2]} 28... Bb5 {[%clk 0:01:11.3]} 29. Rc2 {[%clk 0:00:53.9]} 29... Rc8
{[%clk 0:01:02.9]} 30. Rac1 {[%clk 0:00:54.3]} 30... Nb4 {[%clk 0:00:57]} 0-1

[Event "*** Titled Tuesday Blitz"]
[Site "Chess.com"]
[Date "2020.02.04"]
[Round "2"]
[White "Witik"]
[Black "DortmundCity"]
[Result "1-0"]
[WhiteElo "2623"]
[BlackElo "2366"]
[TimeControl "180+2"]
[EndTime "13:23:03 PST"]
[Termination "Witik won by resignation"]

1. e4 {[%clk 0:03:01.9]} 1... c5 {[%clk 0:02:56.3]} 2. Nf3 {[%clk 0:03:02.4]}
2... d6 {[%clk 0:02:56.9]} 3. d4 {[%clk 0:03:01.7]} 3... cxd4 {[%clk 0:02:58.1]}
4. Nxd4 {[%clk 0:03:03.6]} 4... Nf6 {[%clk 0:02:59.3]} 5. Nc3 {[%clk 0:03:04.9]}
5... Nc6 {[%clk 0:02:59.5]} 6. Be2 {[%clk 0:03:05.1]} 6... Qb6 {[%clk
0:02:59.5]} 7. Nb3 {[%clk 0:03:04.1]} 7... g6 {[%clk 0:02:59]} 8. Be3 {[%clk
0:03:02.3]} 8... Qc7 {[%clk 0:02:57.5]} 9. g4 {[%clk 0:03:02.2]} 9... Bg7 {[%clk
0:02:56.6]} 10. g5 {[%clk 0:03:02.4]} 10... Nd7 {[%clk 0:02:56.5]} 11. h4 {[%clk
0:02:48.2]} 11... a6 {[%clk 0:02:54.6]} 12. h5 {[%clk 0:02:41.7]} 12... e6
{[%clk 0:02:50.1]} 13. Qd2 {[%clk 0:02:33.3]} 13... Nce5 {[%clk 0:02:24.2]} 14.
O-O-O {[%clk 0:02:27.7]} 14... Nc4 {[%clk 0:02:22.3]} 15. Bxc4 {[%clk
0:02:27.9]} 15... Qxc4 {[%clk 0:02:23.2]} 16. Qxd6 {[%clk 0:02:25.2]} 16... Be5
{[%clk 0:02:19]} 17. Qa3 {[%clk 0:02:09.2]} 17... b5 {[%clk 0:02:13.5]} 18. Bd4
{[%clk 0:01:53.6]} 18... Bf4+ {[%clk 0:01:48.7]} 19. Kb1 {[%clk 0:01:53]} 19...
e5 {[%clk 0:01:49.6]} 20. Nd5 {[%clk 0:01:47]} 20... Bxg5 {[%clk 0:01:40.7]} 21.
hxg6 {[%clk 0:01:35.9]} 21... fxg6 {[%clk 0:01:37.4]} 22. Bxe5 {[%clk
0:01:08.7]} 22... Nxe5 {[%clk 0:01:30.8]} 23. Qd6 {[%clk 0:01:09.3]} 23... Nf7
{[%clk 0:00:21]} 24. Nc7+ {[%clk 0:01:07.8]} 24... Qxc7 {[%clk 0:00:22.4]} 25.
Qxc7 {[%clk 0:01:09.7]} 25... Be7 {[%clk 0:00:23.6]} 26. Qc6+ {[%clk 0:01:09.3]}
1-0